[Event "Live Chess"]
[Site "Chess.com"]
[Date "2021.02.24"]
[Round "5"]
[White "dashrndrx"]
[Black "pgstar3"]
[Result "1/2-1/2"]
[CurrentPosition "6k1/6pp/pp1qn3/3p4/4pP2/4P1P1/PP1QN2P/6K1 b - -"]
[Timezone "UTC"]
[ECO "A11"]
[ECOUrl "https://www.chess.com/openings/English-Opening-Caro-Kann-Defensive-System-2.Nc3-d5"]
[UTCDate "2021.02.24"]
[UTCTime "02:30:44"]
[WhiteElo "1877"]
[BlackElo "1856"]
[TimeControl "2100+2"]
[Termination "Game drawn by repetition"]
[StartTime "02:30:44"]
[EndDate "2021.02.24"]
[EndTime "03:27:02"]
[Link "https://www.chess.com/live/game/7872835993"]

1. c4 {[%clk 0:34:27.6]} 1... c6 {[%clk 0:34:56.5]} 2. Nc3 {[%clk 0:34:26.5]} 2... d5 {[%clk 0:34:47.2]} 3. cxd5 {[%clk 0:34:26.9]} 3... cxd5 {[%clk 0:34:45.4]} 4. d4 {[%clk 0:34:26.9]} 4... Nf6 {[%clk 0:34:45.3]} 5. Bf4 {[%clk 0:34:24.9]} 5... Nc6 {[%clk 0:34:45.7]} 6. Nf3 {[%clk 0:34:20.5]} 6... a6 {[%clk 0:34:37.1]} 7. e3 {[%clk 0:33:32.2]} 7... Bg4 {[%clk 0:34:19.3]} 8. Be2 {[%clk 0:32:08.2]} 8... e6 {[%clk 0:33:50.3]} 9. O-O {[%clk 0:30:59.7]} 9... Bd6 {[%clk 0:33:12.3]} 10. Bxd6 {[%clk 0:30:50.2]} 10... Qxd6 {[%clk 0:33:11.1]} 11. Rc1 {[%clk 0:30:22.8]} 11... O-O {[%clk 0:33:04.7]} 12. Na4 {[%clk 0:26:00.1]} 12... Rac8 {[%clk 0:28:55.2]} 13. Nc5 {[%clk 0:25:24.4]} 13... Rc7 {[%clk 0:27:11]} 14. Nd3 {[%clk 0:25:08.6]} 14... Ne4 {[%clk 0:25:28.6]} 15. Nfe5 {[%clk 0:24:23.8]} 15... Bxe2 {[%clk 0:25:14.7]} 16. Qxe2 {[%clk 0:24:16.3]} 16... Nxe5 {[%clk 0:24:59.1]} 17. Nxe5 {[%clk 0:23:07.7]} 17... Rfc8 {[%clk 0:24:26]} 18. Rxc7 {[%clk 0:22:26]} 18... Rxc7 {[%clk 0:24:24.3]} 19. f3 {[%clk 0:22:14.7]} 19... Nf6 {[%clk 0:24:22.5]} 20. Qd2 {[%clk 0:21:15.3]} 20... Nd7 {[%clk 0:23:08.4]} 21. Nd3 {[%clk 0:20:35.9]} 21... f6 {[%clk 0:22:43.4]} 22. Rc1 {[%clk 0:20:22.8]} 22... Rxc1+ {[%clk 0:20:16.8]} 23. Nxc1 {[%clk 0:19:32.8]} 23... e5 {[%clk 0:19:52.3]} 24. Nb3 {[%clk 0:19:06.7]} 24... b6 {[%clk 0:18:50.1]} 25. dxe5 {[%clk 0:14:45]} 25... fxe5 {[%clk 0:18:44.2]} 26. g3 {[%clk 0:13:32.6]} 26... Nc5 {[%clk 0:17:57]} 27. Nc1 {[%clk 0:13:04.6]} 27... Ne6 {[%clk 0:11:49.6]} 28. f4 {[%clk 0:11:38.9]} 28... e4 {[%clk 0:10:07.2]} 29. Ne2 {[%clk 0:11:28.1]} 29... Nc5 {[%clk 0:07:51.6]} 30. Qd4 {[%clk 0:10:46.2]} 30... Ne6 {[%clk 0:06:56.6]} 31. Qd2 {[%clk 0:09:50.6]} 31... Nc5 {[%clk 0:06:53.3]} 32. Qd4 {[%clk 0:09:21.6]} 32... Ne6 {[%clk 0:06:47]} 33. Qd2 {[%clk 0:09:21.9]} 1/2-1/2

[Event "Live Chess"]
[Site "Chess.com"]
[Date "2021.02.24"]
[Round "5"]
[White "SebbyMeister"]
[Black "GM_Fobby_Bischer"]
[Result "1/2-1/2"]
[CurrentPosition "8/8/8/8/8/k4K2/8/8 w - -"]
[Timezone "UTC"]
[ECO "B22"]
[ECOUrl "https://www.chess.com/openings/Sicilian-Defense-Alapin-Variation-Barmen-Defense"]
[UTCDate "2021.02.24"]
[UTCTime "02:32:25"]
[WhiteElo "1770"]
[BlackElo "1725"]
[TimeControl "2100+2"]
[Termination "Game drawn by insufficient material"]
[StartTime "02:32:25"]
[EndDate "2021.02.24"]
[EndTime "03:46:53"]
[Link "https://www.chess.com/live/game/7872859655"]

1. e4 {[%clk 0:34:49.6]} 1... c5 {[%clk 0:35:00.4]} 2. c3 {[%clk 0:34:47.1]} 2... d5 {[%clk 0:35:00.3]} 3. exd5 {[%clk 0:34:41.3]} 3... Qxd5 {[%clk 0:35:00.5]} 4. Nf3 {[%clk 0:34:37.8]} 4... Bg4 {[%clk 0:34:54]} 5. Be2 {[%clk 0:34:31]} 5... e5 {[%clk 0:34:40]} 6. h3 {[%clk 0:34:04.4]} 6... Bh5 {[%clk 0:34:11.7]} 7. g4 {[%clk 0:32:58.5]} 7... Bg6 {[%clk 0:34:09]} 8. Qb3 {[%clk 0:31:22.6]} 8... Qxb3 {[%clk 0:33:50.1]} 9. axb3 {[%clk 0:31:20]} 9... Nc6 {[%clk 0:33:42.1]} 10. Bb5 {[%clk 0:30:50.4]} 10... Bd6 {[%clk 0:32:37.3]} 11. Na3 {[%clk 0:29:52.6]} 11... Ne7 {[%clk 0:31:19.3]} 12. Nc4 {[%clk 0:28:59.3]} 12... O-O-O {[%clk 0:29:04.6]} 13. Na5 {[%clk 0:24:50.9]} 13... Nxa5 {[%clk 0:27:00.2]} 14. Rxa5 {[%clk 0:24:47.2]} 14... a6 {[%clk 0:26:21.7]} 15. Be2 {[%clk 0:23:40]} 15... h5 {[%clk 0:24:20.4]} 16. gxh5 {[%clk 0:18:13.1]} 16... Bxh5 {[%clk 0:24:09]} 17. d3 {[%clk 0:16:50.3]} 17... Rdg8 {[%clk 0:20:37.6]} 18. Be3 {[%clk 0:14:57.5]} 18... f5 {[%clk 0:19:24]} 19. Ng5 {[%clk 0:11:41.3]} 19... Nc6 {[%clk 0:18:32.3]} 20. Ra4 {[%clk 0:11:17.7]} 20... Bxe2 {[%clk 0:18:06.3]} 21. Kxe2 {[%clk 0:11:09.9]} 21... Rh5 {[%clk 0:17:37.3]} 22. Nf3 {[%clk 0:09:27]} 22... f4 {[%clk 0:15:02.1]} 23. Bd2 {[%clk 0:09:27.8]} 23... Kd7 {[%clk 0:14:25]} 24. Raa1 {[%clk 0:09:16.3]} 24... g5 {[%clk 0:13:55.7]} 25. Rag1 {[%clk 0:09:07.6]} 25... Ke6 {[%clk 0:13:05.4]} 26. Rg4 {[%clk 0:08:56.2]} 26... Be7 {[%clk 0:12:40.6]} 27. Rhg1 {[%clk 0:08:40.6]} 27... Kf5 {[%clk 0:11:52]} 28. h4 {[%clk 0:08:19.6]} 28... Na5 {[%clk 0:11:04.2]} 29. hxg5 {[%clk 0:07:23]} 29... Nxb3 {[%clk 0:10:34.1]} 30. g6 {[%clk 0:07:19]} 30... Rh3 {[%clk 0:09:41.9]} 31. Ng5 {[%clk 0:06:41.5]} 31... Rxg6 {[%clk 0:08:47.4]} 32. Nxh3 {[%clk 0:06:01.4]} 32... Rxg4 {[%clk 0:08:45.5]} 33. Rxg4 {[%clk 0:06:03.3]} 33... Kxg4 {[%clk 0:08:44.5]} 34. Ng1 {[%clk 0:06:04.6]} 34... Nxd2 {[%clk 0:08:13.4]} 35. Kxd2 {[%clk 0:06:06.5]} 35... b5 {[%clk 0:07:33.6]} 36. c4 {[%clk 0:05:57]} 36... bxc4 {[%clk 0:07:22.2]} 37. dxc4 {[%clk 0:05:58.9]} 37... Bf6 {[%clk 0:06:48.6]} 38. b3 {[%clk 0:05:58]} 38... e4 {[%clk 0:06:34.2]} 39. Ke2 {[%clk 0:05:32.8]} 39... Bd4 {[%clk 0:05:48.8]} 40. Ke1 {[%clk 0:04:26.6]} 40... e3 {[%clk 0:04:45.9]} 41. fxe3 {[%clk 0:02:34.8]} 41... Bxe3 {[%clk 0:04:46.1]} 42. Ne2 {[%clk 0:02:34.9]} 42... f3 {[%clk 0:04:26.8]} 43. Nc3 {[%clk 0:02:35.1]} 43... Kg3 {[%clk 0:03:48.2]} 44. Kf1 {[%clk 0:02:24.8]} 44... Kf4 {[%clk 0:03:45.2]} 45. Nd5+ {[%clk 0:02:23.1]} 45... Ke4 {[%clk 0:03:38.9]} 46. Ke1 {[%clk 0:01:45.4]} 46... Kd3 {[%clk 0:03:14.3]} 47. Kf1 {[%clk 0:00:20.7]} 47... Bd4 {[%clk 0:02:59.1]} 48. Nc7 {[%clk 0:00:17.7]} 48... a5 {[%clk 0:02:53.2]} 49. Ne6 {[%clk 0:00:09.5]} 49... Kc3 {[%clk 0:02:51.4]} 50. Ke1 {[%clk 0:00:09]} 50... f2+ {[%clk 0:02:22.4]} 51. Kf1 {[%clk 0:00:08.3]} 51... Kxb3 {[%clk 0:02:22.3]} 52. Nxd4+ {[%clk 0:00:09.5]} 52... cxd4 {[%clk 0:02:24.2]} 53. c5 {[%clk 0:00:10.9]} 53... d3 {[%clk 0:02:07]} 54. Kxf2 {[%clk 0:00:11.7]} 54... Kc2 {[%clk 0:02:01.4]} 55. c6 {[%clk 0:00:11.3]} 55... d2 {[%clk 0:01:50.8]} 56. c7 {[%clk 0:00:12.6]} 56... d1=Q {[%clk 0:01:40.3]} 57. c8=Q+ {[%clk 0:00:13.4]} 57... Kb2 {[%clk 0:01:25.3]} 58. Qh8+ {[%clk 0:00:11.3]} 58... Kb1 {[%clk 0:01:05.4]} 59. Qg7 {[%clk 0:00:03.4]} 59... Qd2+ {[%clk 0:00:44.1]} 60. Kf3 {[%clk 0:00:04.5]} 60... a4 {[%clk 0:00:34.8]} 61. Qb7+ {[%clk 0:00:04.7]} 61... Qb2 {[%clk 0:00:34.4]} 62. Qe4+ {[%clk 0:00:06.2]} 62... Ka2 {[%clk 0:00:19.6]} 63. Qxa4+ {[%clk 0:00:06.3]} 63... Qa3+ {[%clk 0:00:12.9]} 64. Qxa3+ {[%clk 0:00:06.5]} 64... Kxa3 {[%clk 0:00:13.5]} 1/2-1/2

[Event "Live Chess"]
[Site "Chess.com"]
[Date "2021.02.24"]
[Round "5"]
[White "KingSmasher35"]
[Black "Daniel_Perlov"]
[Result "1-0"]
[CurrentPosition "7Q/8/8/6R1/4B3/5P2/5kPK/6r1 b - -"]
[Timezone "UTC"]
[ECO "A45"]
[ECOUrl "https://www.chess.com/openings/Indian-Game"]
[UTCDate "2021.02.24"]
[UTCTime "02:30:41"]
[WhiteElo "1865"]
[BlackElo "1810"]
[TimeControl "2100+2"]
[Termination "KingSmasher35 won by resignation"]
[StartTime "02:30:41"]
[EndDate "2021.02.24"]
[EndTime "03:33:21"]
[Link "https://www.chess.com/live/game/7872836559"]

1. d4 {[%clk 0:34:56.8]} 1... Nf6 {[%clk 0:34:58.8]} 2. Bf4 {[%clk 0:34:54.3]} 2... g6 {[%clk 0:34:44.1]} 3. e3 {[%clk 0:34:52.4]} 3... Bg7 {[%clk 0:34:44.9]} 4. Nf3 {[%clk 0:34:52]} 4... d6 {[%clk 0:34:45.4]} 5. h3 {[%clk 0:34:51.6]} 5... O-O {[%clk 0:34:44.4]} 6. c4 {[%clk 0:34:50]} 6... c5 {[%clk 0:34:38.1]} 7. Nc3 {[%clk 0:34:46.8]} 7... cxd4 {[%clk 0:34:36.8]} 8. exd4 {[%clk 0:34:44.2]} 8... Nbd7 {[%clk 0:34:29.8]} 9. Be2 {[%clk 0:34:34.8]} 9... a6 {[%clk 0:34:08.6]} 10. O-O {[%clk 0:34:27.3]} 10... b6 {[%clk 0:33:38.3]} 11. Re1 {[%clk 0:34:05.7]} 11... Bb7 {[%clk 0:33:08]} 12. Qd2 {[%clk 0:33:10]} 12... d5 {[%clk 0:31:59.5]} 13. b3 {[%clk 0:32:29.6]} 13... e6 {[%clk 0:28:51.9]} 14. Rac1 {[%clk 0:31:31.7]} 14... Rc8 {[%clk 0:28:28.6]} 15. Bh6 {[%clk 0:29:57.6]} 15... dxc4 {[%clk 0:25:18]} 16. Bxg7 {[%clk 0:29:39.2]} 16... Kxg7 {[%clk 0:25:18.6]} 17. bxc4 {[%clk 0:29:24.3]} 17... Ne4 {[%clk 0:25:01.3]} 18. Nxe4 {[%clk 0:28:55.3]} 18... Bxe4 {[%clk 0:24:58.7]} 19. Qe3 {[%clk 0:27:10.8]} 19... Nf6 {[%clk 0:23:06.1]} 20. Red1 {[%clk 0:26:35.1]} 20... Bb7 {[%clk 0:22:20.3]} 21. Ne5 {[%clk 0:24:59.7]} 21... b5 {[%clk 0:18:46.4]} 22. cxb5 {[%clk 0:24:16.1]} 22... Nd5 {[%clk 0:18:46.9]} 23. Qd2 {[%clk 0:23:13.5]} 23... axb5 {[%clk 0:17:44.2]} 24. Bxb5 {[%clk 0:22:53.6]} 24... Qh4 {[%clk 0:17:32.3]} 25. Nf3 {[%clk 0:21:41.9]} 25... Qf6 {[%clk 0:16:57.6]} 26. Qg5 {[%clk 0:21:14.8]} 26... Qxg5 {[%clk 0:16:35.8]} 27. Nxg5 {[%clk 0:21:14.2]} 27... Nc3 {[%clk 0:16:37]} 28. Rxc3 {[%clk 0:10:39.9]} 28... Rxc3 {[%clk 0:16:32.3]} 29. Rb1 {[%clk 0:10:13.3]} 29... h6 {[%clk 0:16:18.7]} 30. Bd7 {[%clk 0:09:44.4]} 30... hxg5 {[%clk 0:15:25.4]} 31. Rxb7 {[%clk 0:09:41.7]} 31... Rc1+ {[%clk 0:15:20]} 32. Kh2 {[%clk 0:09:40.6]} 32... Re1 {[%clk 0:15:14.9]} 33. f3 {[%clk 0:09:16]} 33... Rd8 {[%clk 0:14:56.4]} 34. a4 {[%clk 0:09:01.7]} 34... Kg8 {[%clk 0:14:52.5]} 35. a5 {[%clk 0:07:38.4]} 35... Rd1 {[%clk 0:14:40.9]} 36. a6 {[%clk 0:07:20.8]} 36... Ra8 {[%clk 0:14:20.5]} 37. a7 {[%clk 0:07:16]} 37... Kg7 {[%clk 0:14:01.5]} 38. Bxe6 {[%clk 0:07:06]} 38... Kf6 {[%clk 0:13:47.9]} 39. Bd5 {[%clk 0:05:36.3]} 39... Rxa7 {[%clk 0:11:10.2]} 40. Rxa7 {[%clk 0:05:28.5]} 40... Rxd4 {[%clk 0:11:10.9]} 41. Rxf7+ {[%clk 0:04:56.5]} 41... Ke5 {[%clk 0:11:03.8]} 42. Be4 {[%clk 0:04:49.7]} 42... Rd6 {[%clk 0:10:47.6]} 43. Rg7 {[%clk 0:04:34.4]} 43... Kf4 {[%clk 0:10:13.9]} 44. Rxg6 {[%clk 0:04:26.4]} 44... Rd1 {[%clk 0:10:11.1]} 45. Rf6+ {[%clk 0:04:14]} 45... Ke3 {[%clk 0:10:11.7]} 46. Rf5 {[%clk 0:04:03.3]} 46... Kf2 {[%clk 0:09:58.6]} 47. Rxg5 {[%clk 0:03:55]} 47... Rg1 {[%clk 0:09:54.5]} 48. h4 {[%clk 0:03:46.5]} 48... Rc1 {[%clk 0:09:43.5]} 49. h5 {[%clk 0:03:40.8]} 49... Rc8 {[%clk 0:09:40.6]} 50. h6 {[%clk 0:03:33.7]} 50... Rc1 {[%clk 0:08:28.8]} 51. h7 {[%clk 0:03:28.9]} 51... Rg1 {[%clk 0:08:06.5]} 52. h8=Q {[%clk 0:03:23.1]} 1-0

[Event "Live Chess"]
[Site "Chess.com"]
[Date "2021.02.24"]
[Round "5"]
[White "thedarkbishop"]
[Black "austin809"]
[Result "1-0"]
[CurrentPosition "2Q5/k1Q5/1N6/8/1P3K2/8/7p/8 b - -"]
[Timezone "UTC"]
[ECO "E80"]
[ECOUrl "https://www.chess.com/openings/Kings-Indian-Defense-Samisch-Variation-5...e5-6.d5"]
[UTCDate "2021.02.24"]
[UTCTime "02:32:10"]
[WhiteElo "1822"]
[BlackElo "1622"]
[TimeControl "2100+2"]
[Termination "thedarkbishop won by checkmate"]
[StartTime "02:32:10"]
[EndDate "2021.02.24"]
[EndTime "03:44:11"]
[Link "https://www.chess.com/live/game/7872855015"]

1. d4 {[%clk 0:35:00.6]} 1... Nf6 {[%clk 0:34:59.6]} 2. c4 {[%clk 0:35:00]} 2... g6 {[%clk 0:34:59.4]} 3. Nc3 {[%clk 0:34:58.6]} 3... Bg7 {[%clk 0:34:54.3]} 4. e4 {[%clk 0:34:57.5]} 4... d6 {[%clk 0:34:50.1]} 5. f3 {[%clk 0:34:33.3]} 5... e5 {[%clk 0:32:35.8]} 6. d5 {[%clk 0:32:27.4]} 6... c6 {[%clk 0:31:38.8]} 7. Be3 {[%clk 0:31:37.7]} 7... O-O {[%clk 0:30:07.2]} 8. Bd3 {[%clk 0:31:02.9]} 8... b5 {[%clk 0:29:11]} 9. cxb5 {[%clk 0:30:07.5]} 9... cxd5 {[%clk 0:28:42.2]} 10. exd5 {[%clk 0:27:23.6]} 10... Nbd7 {[%clk 0:25:33]} 11. Nge2 {[%clk 0:26:18.2]} 11... Nb6 {[%clk 0:24:45.9]} 12. Bf2 {[%clk 0:22:17.1]} 12... Bb7 {[%clk 0:20:41.9]} 13. Be4 {[%clk 0:17:38.9]} 13... Nxe4 {[%clk 0:18:31.1]} 14. fxe4 {[%clk 0:17:28.6]} 14... Qd7 {[%clk 0:17:09.6]} 15. O-O {[%clk 0:16:53.1]} 15... f5 {[%clk 0:15:29.9]} 16. Bxb6 {[%clk 0:11:40.7]} 16... axb6 {[%clk 0:14:52.2]} 17. Rc1 {[%clk 0:09:13.6]} 17... fxe4 {[%clk 0:14:02.1]} 18. Rxf8+ {[%clk 0:09:03.6]} 18... Rxf8 {[%clk 0:13:36.3]} 19. Nxe4 {[%clk 0:08:30.9]} 19... Qxb5 {[%clk 0:09:30.6]} 20. Rc7 {[%clk 0:07:33.3]} 20... Qxd5 {[%clk 0:07:10.5]} 21. Qxd5+ {[%clk 0:06:20.3]} 21... Bxd5 {[%clk 0:07:09.6]} 22. N4c3 {[%clk 0:05:47.6]} 22... Ba8 {[%clk 0:05:24.1]} 23. Rd7 {[%clk 0:05:37.3]} 23... d5 {[%clk 0:04:32.8]} 24. Nxd5 {[%clk 0:05:28.8]} 24... Bxd5 {[%clk 0:04:31.6]} 25. Rxd5 {[%clk 0:05:29.2]} 25... Rb8 {[%clk 0:03:44]} 26. Rb5 {[%clk 0:05:18]} 26... e4 {[%clk 0:03:28.8]} 27. Kf2 {[%clk 0:05:07.2]} 27... Bh6 {[%clk 0:02:59]} 28. a4 {[%clk 0:04:39]} 28... Bg5 {[%clk 0:02:29.5]} 29. Rxg5 {[%clk 0:04:26.9]} 29... Kf7 {[%clk 0:02:30.9]} 30. Re5 {[%clk 0:04:14.4]} 30... Rc8 {[%clk 0:02:15.5]} 31. Rxe4 {[%clk 0:04:04.6]} 31... Rc7 {[%clk 0:02:04.9]} 32. Nc3 {[%clk 0:03:59.9]} 32... h5 {[%clk 0:01:56.7]} 33. h4 {[%clk 0:03:49.8]} 33... Rc6 {[%clk 0:01:52.7]} 34. Ke3 {[%clk 0:03:36.4]} 34... Kf6 {[%clk 0:01:53.2]} 35. g3 {[%clk 0:03:17.5]} 35... Kf5 {[%clk 0:01:48.2]} 36. Nd5 {[%clk 0:02:53.4]} 36... Rc2 {[%clk 0:01:38.3]} 37. b4 {[%clk 0:02:14.2]} 37... Rc1 {[%clk 0:01:28.9]} 38. Rf4+ {[%clk 0:02:00.5]} 38... Ke6 {[%clk 0:01:27.3]} 39. Nxb6 {[%clk 0:01:46.3]} 39... Rc3+ {[%clk 0:01:26.8]} 40. Kd4 {[%clk 0:01:30.6]} 40... Rxg3 {[%clk 0:01:25.1]} 41. a5 {[%clk 0:01:24.9]} 41... Rg4 {[%clk 0:01:25.6]} 42. Ke4 {[%clk 0:00:48.9]} 42... Rxf4+ {[%clk 0:01:22.9]} 43. Kxf4 {[%clk 0:00:49.1]} 43... Kf6 {[%clk 0:01:11.8]} 44. a6 {[%clk 0:00:49.8]} 44... g5+ {[%clk 0:01:13.2]} 45. hxg5+ {[%clk 0:00:49.7]} 45... Kg6 {[%clk 0:01:15]} 46. a7 {[%clk 0:00:49.6]} 46... Kf7 {[%clk 0:01:16.7]} 47. a8=Q {[%clk 0:00:49.3]} 47... Ke6 {[%clk 0:01:18.1]} 48. Qe4+ {[%clk 0:00:49.2]} 48... Kd6 {[%clk 0:01:18.2]} 49. Qe5+ {[%clk 0:00:49.2]} 49... Kc6 {[%clk 0:01:19]} 50. Qc5+ {[%clk 0:00:48.6]} 50... Kb7 {[%clk 0:01:18.5]} 51. g6 {[%clk 0:00:46]} 51... h4 {[%clk 0:01:19.6]} 52. g7 {[%clk 0:00:44.6]} 52... h3 {[%clk 0:01:21.2]} 53. g8=Q {[%clk 0:00:44.5]} 53... h2 {[%clk 0:01:23.1]} 54. Qgc8+ {[%clk 0:00:42.9]} 54... Ka7 {[%clk 0:01:22.3]} 55. Q5c7# {[%clk 0:00:42]} 1-0

[Event "Live Chess"]
[Site "Chess.com"]
[Date "2021.02.24"]
[Round "5"]
[White "rimus11"]
[Black "GiorgosTsolias"]
[Result "1-0"]
[CurrentPosition "1r4k1/R5p1/1p2p2p/2b1P3/8/3R1P2/PP1BKP1P/8 b - -"]
[Timezone "UTC"]
[ECO "C02"]
[ECOUrl "https://www.chess.com/openings/French-Defense-Advance-Variation-3...c5-4.c3-Nc6"]
[UTCDate "2021.02.24"]
[UTCTime "02:32:21"]
[WhiteElo "1498"]
[BlackElo "1634"]
[TimeControl "2100+2"]
[Termination "rimus11 won by resignation"]
[StartTime "02:32:21"]
[EndDate "2021.02.24"]
[EndTime "03:19:06"]
[Link "https://www.chess.com/live/game/7872855987"]

1. e4 {[%clk 0:34:32.9]} 1... e6 {[%clk 0:34:58.2]} 2. d4 {[%clk 0:34:29.6]} 2... d5 {[%clk 0:34:58.8]} 3. e5 {[%clk 0:34:30.2]} 3... c5 {[%clk 0:34:59.2]} 4. c3 {[%clk 0:34:22.5]} 4... Nc6 {[%clk 0:34:53.4]} 5. Bb5 {[%clk 0:33:46.6]} 5... Bd7 {[%clk 0:33:52.9]} 6. Bxc6 {[%clk 0:33:43.1]} 6... Bxc6 {[%clk 0:33:49.7]} 7. Nf3 {[%clk 0:33:31.7]} 7... Bb5 {[%clk 0:33:18.8]} 8. Na3 {[%clk 0:32:38.5]} 8... Qb6 {[%clk 0:30:45.7]} 9. Nxb5 {[%clk 0:32:31.7]} 9... Qxb5 {[%clk 0:30:44.4]} 10. Qe2 {[%clk 0:32:28.7]} 10... Qxe2+ {[%clk 0:30:02.1]} 11. Kxe2 {[%clk 0:32:27.3]} 11... cxd4 {[%clk 0:30:02.9]} 12. cxd4 {[%clk 0:32:25.1]} 12... Ne7 {[%clk 0:29:24.7]} 13. Bg5 {[%clk 0:31:47.7]} 13... Nc6 {[%clk 0:28:39.9]} 14. Rac1 {[%clk 0:31:12.1]} 14... h6 {[%clk 0:28:22.3]} 15. Bd2 {[%clk 0:31:01.6]} 15... Be7 {[%clk 0:28:17.1]} 16. Rc3 {[%clk 0:29:06.8]} 16... f6 {[%clk 0:27:15.6]} 17. Rb3 {[%clk 0:28:19.9]} 17... Rb8 {[%clk 0:26:25.6]} 18. Rc1 {[%clk 0:28:11.3]} 18... O-O {[%clk 0:26:12.8]} 19. Be3 {[%clk 0:23:10.9]} 19... fxe5 {[%clk 0:24:49.7]} 20. Nxe5 {[%clk 0:22:51.1]} 20... Nxe5 {[%clk 0:24:25.7]} 21. dxe5 {[%clk 0:22:50.2]} 21... b6 {[%clk 0:20:59]} 22. Rc7 {[%clk 0:22:05.6]} 22... Bc5 {[%clk 0:20:10.9]} 23. Rxa7 {[%clk 0:20:17.9]} 23... d4 {[%clk 0:19:43.3]} 24. Bd2 {[%clk 0:19:11.5]} 24... d3+ {[%clk 0:19:08.2]} 25. Rxd3 {[%clk 0:13:57.6]} 25... Rf3 {[%clk 0:19:02.3]} 26. gxf3 {[%clk 0:13:54.2]} 1-0

[Event "Live Chess"]
[Site "Chess.com"]
[Date "2021.02.24"]
[Round "5"]
[White "rekasztaray"]
[Black "sfdeals"]
[Result "0-1"]
[CurrentPosition "8/2p5/5kpK/p2p4/P6r/8/2P1n1PP/8 w - -"]
[Timezone "UTC"]
[ECO "C47"]
[ECOUrl "https://www.chess.com/openings/Four-Knights-Game-Scotch-Variation-Accepted-5.Nxd4-d6"]
[UTCDate "2021.02.24"]
[UTCTime "02:33:06"]
[WhiteElo "1414"]
[BlackElo "1594"]
[TimeControl "2100+2"]
[Termination "sfdeals won by checkmate"]
[StartTime "02:33:06"]
[EndDate "2021.02.24"]
[EndTime "03:24:32"]
[Link "https://www.chess.com/live/game/7872862171"]

1. e4 {[%clk 0:35:01.3]} 1... e5 {[%clk 0:34:54.8]} 2. Nf3 {[%clk 0:34:43.6]} 2... Nc6 {[%clk 0:34:50.4]} 3. Nc3 {[%clk 0:34:25.7]} 3... Nf6 {[%clk 0:34:48.5]} 4. d4 {[%clk 0:33:52.1]} 4... exd4 {[%clk 0:34:40.4]} 5. Nxd4 {[%clk 0:33:34.5]} 5... d6 {[%clk 0:34:10.8]} 6. Bg5 {[%clk 0:32:53.9]} 6... Be7 {[%clk 0:33:55.3]} 7. Bb5 {[%clk 0:32:43.3]} 7... Bd7 {[%clk 0:33:24.3]} 8. Nxc6 {[%clk 0:32:16.1]} 8... Bxc6 {[%clk 0:33:07.5]} 9. Bxc6+ {[%clk 0:32:03.5]} 9... bxc6 {[%clk 0:32:45.9]} 10. O-O {[%clk 0:31:54.9]} 10... O-O {[%clk 0:32:26.9]} 11. Re1 {[%clk 0:31:13.4]} 11... h6 {[%clk 0:31:48.5]} 12. Bf4 {[%clk 0:30:49]} 12... Rb8 {[%clk 0:31:19.3]} 13. b3 {[%clk 0:30:20.1]} 13... Nd7 {[%clk 0:30:27.2]} 14. Qg4 {[%clk 0:30:12.8]} 14... Ne5 {[%clk 0:29:42.8]} 15. Qg3 {[%clk 0:30:05.8]} 15... Ng6 {[%clk 0:29:15.7]} 16. Be3 {[%clk 0:29:28.1]} 16... a5 {[%clk 0:28:02.4]} 17. a4 {[%clk 0:29:03.7]} 17... Bf6 {[%clk 0:27:12.2]} 18. Bd2 {[%clk 0:28:32.4]} 18... Re8 {[%clk 0:26:17.4]} 19. Rad1 {[%clk 0:28:14.7]} 19... Qd7 {[%clk 0:24:36.5]} 20. Nb1 {[%clk 0:24:25.1]} 20... Ra8 {[%clk 0:23:27]} 21. Bc3 {[%clk 0:23:41.4]} 21... Bxc3 {[%clk 0:22:56.9]} 22. Nxc3 {[%clk 0:23:40.4]} 22... Qe7 {[%clk 0:21:49.3]} 23. f3 {[%clk 0:21:59.3]} 23... Qe5 {[%clk 0:20:50.6]} 24. Qxe5 {[%clk 0:21:44.6]} 24... Rxe5 {[%clk 0:20:38.2]} 25. Rd2 {[%clk 0:21:19.9]} 25... Rae8 {[%clk 0:20:07.5]} 26. Nd1 {[%clk 0:20:50.7]} 26... f5 {[%clk 0:19:12.5]} 27. Rde2 {[%clk 0:19:26.6]} 27... fxe4 {[%clk 0:18:03.7]} 28. Rxe4 {[%clk 0:19:09.3]} 28... Kf7 {[%clk 0:16:41.6]} 29. Nc3 {[%clk 0:18:19.6]} 29... Rxe4 {[%clk 0:16:18.7]} 30. Rxe4 {[%clk 0:18:12.8]} 30... Re5 {[%clk 0:15:32.9]} 31. Kf2 {[%clk 0:18:04.6]} 31... Rc5 {[%clk 0:14:54.9]} 32. Re3 {[%clk 0:17:20.1]} 32... d5 {[%clk 0:11:47.3]} 33. Re2 {[%clk 0:17:02.3]} 33... Rxc3 {[%clk 0:11:38.3]} 34. Rd2 {[%clk 0:16:29.2]} 34... Ke6 {[%clk 0:11:19]} 35. Kg3 {[%clk 0:15:37.4]} 35... c5 {[%clk 0:10:41.6]} 36. Kg4 {[%clk 0:14:55.4]} 36... c4 {[%clk 0:09:52.9]} 37. Re2+ {[%clk 0:14:28.9]} 37... Kf6 {[%clk 0:09:16.1]} 38. f4 {[%clk 0:13:59]} 38... h5+ {[%clk 0:09:02.9]} 39. Kxh5 {[%clk 0:13:16]} 39... Nxf4+ {[%clk 0:08:58]} 40. Kg4 {[%clk 0:13:13.6]} 40... Nxe2 {[%clk 0:08:56.8]} 41. bxc4 {[%clk 0:13:00.4]} 41... Rxc4+ {[%clk 0:08:54]} 42. Kh5 {[%clk 0:13:00.8]} 42... g6+ {[%clk 0:08:47.1]} 43. Kh6 {[%clk 0:12:59.5]} 43... Rh4# {[%clk 0:08:48]} 0-1